fUSD/lending_fUSD_20240518
["ID","MTS","AMOUNT","RATE_DAILY","PERIOD"]
[327372239,1716027051524,-500.0,0.00036164,9]
[327372240,1716027051533,-507.63971301,0.00036164,9]
[327372241,1716027051542,-500.0,0.00036164,9]
[327372242,1716027051551,-500.0,0.00036164,9]
[327372243,1716027051560,-500.0,0.00036164,9]
[327372244,1716027051569,-500.0,0.00036164,9]
[327372245,1716027051579,-500.0,0.00036164,9]
[327372246,1716027051588,-500.0,0.00036164,9]
[327372247,1716027051597,-500.0,0.00036164,9]
[327372248,1716027051606,-547.24,0.00036164,9]
[327372249,1716027051616,-500.0,0.00036164,9]
[327372250,1716027051625,-510.16412698,0.00036164,9]
[327372251,1716027051634,-509.9628577,0.00036164,9]
[327372252,1716027051643,-270.26572892,0.00036164,9]
[327372253,1716027051653,-500.0,0.00036164,9]
[327372254,1716027051662,-500.0,0.00036164,9]
[327372255,1716027051671,-500.0,0.00036164,9]
[327372256,1716027051680,-778.58,0.00036164,9]
[327372257,1716027051689,-500.0,0.00036164,9]
[327372258,1716027051699,-541.06,0.00036164,9]
[327372259,1716027051708,-500.0,0.00036164,9]
[327372260,1716027051717,-504.72736762,0.00036164,9]
[327372261,1716027051726,-785.52,0.00036164,9]
[327372262,1716027051735,-500.0,0.00036164,9]
[327372263,1716027051745,-376.32832189,0.00036164,9]
[327372264,1716027051754,-867.73,0.00036164,9]
[327372266,1716027051764,-500.0,0.00036164,9]
[327372267,1716027051774,-500.0,0.00036164,9]
[327372268,1716027051783,-508.30460859,0.00036164,9]
[327372269,1716027051792,-500.0,0.00036164,9]
[327372270,1716027051801,-500.0,0.00036164,9]
[327372271,1716027051810,-500.0,0.00036164,9]
[327372272,1716027051819,-500.0,0.00036164,9]
[327372273,1716027051829,-500.0,0.00036164,9]
[327372274,1716027051838,-500.0,0.00036164,9]
[327372275,1716027051847,-500.0,0.00036164,9]
[327372276,1716027051856,-500.0,0.00036164,9]
[327372277,1716027051866,-500.0,0.00036164,9]
[327372278,1716027051875,-500.0,0.00036164,9]
[327372279,1716027051884,-500.0,0.00036164,9]
[327372280,1716027051893,-500.0,0.00036164,9]
[327372281,1716027051902,-198.07,0.00036164,9]
[327372282,1716027051912,-500.0,0.00036164,9]
[327372283,1716027051921,-500.0,0.00036164,9]
[327372284,1716027051931,-500.0,0.00036164,9]
[327372285,1716027051940,-500.0,0.00036164,9]
[327372286,1716027051949,-500.0,0.00036164,9]
[327372287,1716027051959,-500.0,0.00036164,9]
[327372288,1716027051968,-500.0,0.00036164,9]
[327372289,1716027051978,-500.0,0.00036164,9]
[327372290,1716027051987,-500.0,0.00036164,9]
[327372291,1716027051996,-849.85,0.00036164,9]
[327372292,1716027052005,-150.74610864,0.00036164,9]
[327372293,1716027052014,-500.0,0.00036164,9]
[327372294,1716027052023,-500.0,0.00036164,9]
[327372295,1716027052032,-500.0,0.00036164,9]
[327372296,1716027052042,-3765.94,0.00036164,9]
[327372297,1716027052051,-500.0,0.00036164,9]
[327372298,1716027052059,-500.0,0.00036164,9]
[327372299,1716027052070,-500.0,0.00036164,9]
[327372300,1716027052080,-500.0,0.00036164,9]
[327372301,1716027052094,-500.0,0.00036164,9]
[327372302,1716027052104,-512.63084337,0.00036164,9]
[327372303,1716027052113,-500.0,0.00036164,9]
[327372304,1716027052123,-3754.91,0.00036164,9]
[327372305,1716027052133,-500.0,0.00036164,9]
[327372306,1716027052143,-500.0,0.00036164,9]
[327372307,1716027052152,-500.0,0.00036164,9]
[327372308,1716027052162,-500.0,0.00036164,9]
[327372309,1716027052172,-500.0,0.00036164,9]
[327372310,1716027052183,-5415.09,0.00036164,9]
[327372311,1716027052192,-447.63041151,0.00036164,9]
[327372312,1716027052201,-500.0,0.00036164,9]
[327372313,1716027052211,-500.0,0.00036164,9]
[327372314,1716027052220,-500.0,0.00036164,9]
[327372315,1716027052229,-500.0,0.00036164,9]
[327372316,1716027052238,-500.0,0.00036164,9]
[327372317,1716027052248,-9278.18,0.00036164,9]
[327372318,1716027052257,-500.0,0.00036164,9]
[327372319,1716027052267,-500.0,0.00036164,9]
[327372320,1716027052277,-3867.98,0.00036164,9]
[327372321,1716027052287,-500.0,0.00036164,9]
[327372322,1716027052296,-712.57,0.00036164,9]
[327372323,1716027052305,-524.5931844,0.00036164,9]
[327372324,1716027052316,-500.0,0.00036164,9]
[327372325,1716027052325,-500.0,0.00036164,9]
[327372326,1716027052334,-500.0,0.00036164,9]
[327372327,1716027052343,-500.0,0.00036164,9]
[327372328,1716027052352,-500.0,0.00036164,9]
[327372329,1716027052362,-500.0,0.00036164,9]
[327372330,1716027052371,-500.0,0.00036164,9]
[327372331,1716027052381,-500.0,0.00036164,9]
[327372332,1716027052390,-500.0,0.00036164,9]
[327372333,1716027052400,-2338.72,0.00036164,9]
[327372334,1716027052409,-534.55412747,0.00036164,9]
[327372335,1716027052419,-500.0,0.00036164,9]
[327372336,1716027052428,-4259.86,0.00036164,9]
[327372337,1716027052437,-500.0,0.00036164,9]
[327372338,1716027052446,-500.0,0.00036164,9]
[327372339,1716027052455,-517.72299101,0.00036164,9]
[327372340,1716027052464,-500.0,0.00036164,9]
[327372341,1716027052474,-500.0,0.00036164,9]
[327372342,1716027052483,-500.0,0.00036164,9]
[327372343,1716027052492,-500.0,0.00036164,7]
[327372344,1716027052502,-500.0,0.00036164,9]
[327372345,1716027052511,-500.0,0.00036164,9]
[327372346,1716027052520,-1277.84,0.00036164,9]
[327372347,1716027052530,-500.0,0.00036164,9]
[327372348,1716027052539,-500.0,0.00036164,9]
[327372349,1716027052549,-500.0,0.00036164,9]
[327372350,1716027052558,-500.0,0.00036164,9]
[327372351,1716027052567,-500.0,0.00036164,9]
[327372352,1716027052576,-500.22,0.00036164,9]
[327372353,1716027052586,-500.0,0.00036164,9]
[327372354,1716027052595,-793.67,0.00036164,9]
[327372355,1716027052604,-500.0,0.00036164,9]
[327372356,1716027052613,-500.0,0.00036164,9]
[327372357,1716027052622,-500.0,0.00036164,9]
[327372358,1716027052631,-1024.88,0.00036164,9]
[327372359,1716027052640,-500.0,0.00036164,9]
[327372360,1716027052649,-500.0,0.00036164,9]
[327372361,1716027052659,-500.0,0.00036164,9]
[327372362,1716027052668,-5514.99,0.00036164,9]
[327372363,1716027052677,-643.52,0.00036164,9]
[327372364,1716027052687,-500.0,0.00036164,9]
[327372365,1716027052696,-546.42,0.00036164,9]
[327372366,1716027052705,-500.0,0.00036164,9]
[327372367,1716027052714,-500.0,0.00036164,9]
[327372368,1716027052723,-500.0,0.00036164,9]
[327372369,1716027052732,-915.4,0.00036164,9]
[327372370,1716027052741,-4463.14,0.00036164,9]
[327372371,1716027052751,-616.72,0.00036164,9]
[327372372,1716027052761,-500.0,0.00036164,9]
[327372373,1716027052771,-500.0,0.00036164,9]
[327372374,1716027052780,-731.29,0.00036164,9]
[327372375,1716027052790,-500.0,0.00036164,9]
[327372376,1716027052799,-500.0,0.00036164,9]
[327372377,1716027052808,-151.0,0.00036164,7]
[327372378,1716027052817,-500.0,0.00036164,9]
[327372379,1716027052825,-500.0,0.00036164,9]
[327372380,1716027052834,-510.39238264,0.00036164,9]
[327372381,1716027052843,-500.0,0.00036164,9]
[327372382,1716027052852,-500.0,0.00036164,9]
[327372383,1716027052861,-500.0,0.00036164,9]
[327372384,1716027052869,-500.0,0.00036164,9]
[327372385,1716027052878,-500.0,0.00036164,9]
[327372386,1716027052887,-500.0,0.00036164,9]
[327372387,1716027052896,-500.0,0.00036164,9]
[327372388,1716027052905,-528.19218378,0.00036164,9]
[327372389,1716027052914,-525.87679596,0.00036164,9]
[327372390,1716027052923,-500.0,0.00036164,9]
[327372391,1716027052932,-246.59966,0.00036164,7]
[327372392,1716027052941,-1370.65,0.00036164,9]
[327372393,1716027052950,-500.0,0.00036164,9]
[327372394,1716027052959,-2258.02,0.00036164,9]
[327372395,1716027052968,-500.0,0.00036164,9]
[327372396,1716027052977,-246.59966,0.00036164,7]
[327372397,1716027052986,-722.23,0.00036164,9]
[327372398,1716027052994,-500.0,0.00036164,9]
[327372399,1716027053003,-500.0,0.00036164,9]
[327372400,1716027053012,-500.0,0.00036164,9]
[327372401,1716027053021,-151.0,0.00036164,7]
[327372402,1716027053031,-522.73,0.00036164,9]
[327372403,1716027053042,-500.0,0.00036164,9]
[327372404,1716027053052,-500.0,0.00036164,9]
[327372405,1716027053062,-151.0,0.00036164,7]
[327372406,1716027053073,-500.0,0.00036164,9]
[327372407,1716027053083,-151.0,0.00036164,7]
[327372408,1716027053095,-502.07153948,0.00036164,9]
[327372409,1716027053104,-500.0,0.00036164,9]
[327372410,1716027053113,-524.04323235,0.00036164,9]
[327372411,1716027053124,-151.0,0.00036164,7]
[327372412,1716027053136,-500.0,0.00036164,9]
[327372413,1716027053146,-500.0,0.00036164,9]
[327372414,1716027053155,-500.0,0.00036164,9]
[327372415,1716027053168,-500.0,0.00036164,9]
[327372416,1716027053177,-568.61,0.00036164,9]
[327372417,1716027053187,-500.0,0.00036164,9]
[327372418,1716027053196,-500.0,0.00036164,9]
[327372419,1716027053205,-695.23,0.00036164,9]
[327372420,1716027053215,-447.05021,0.00036164,7]
[327372421,1716027053225,-500.0,0.00036164,9]
[327372422,1716027053234,-500.0,0.00036164,9]
[327372423,1716027053242,-541.32389226,0.00036164,9]
[327372424,1716027053252,-500.0,0.00036164,9]
[327372425,1716027053263,-1052.06,0.00036164,9]
[327372426,1716027053274,-447.05021,0.00036164,7]
[327372427,1716027053283,-151.0,0.00036164,7]
[327372428,1716027053293,-508.35796562,0.00036164,9]
[327372429,1716027053302,-500.0,0.00036164,9]
[327372430,1716027053311,-533.61,0.00036164,9]
[327372431,1716027053320,-500.0,0.00036164,9]
[327372432,1716027053330,-422.753091,0.00036164,7]
[327372433,1716027053339,-500.0,0.00036164,9]
[327372434,1716027053348,-500.0,0.00036164,9]
[327372435,1716027053358,-500.0,0.00036164,9]
[327372436,1716027053367,-500.0,0.00036164,9]
[327372437,1716027053377,-783.35,0.00036164,9]
[327372438,1716027053386,-422.753091,0.00036164,7]
[327372439,1716027053396,-500.0,0.00036164,9]
[327372440,1716027053405,-690.29,0.00036164,9]
[327372441,1716027053414,-525.98,0.00036164,9]
[327372442,1716027053424,-500.0,0.00036164,9]
[327372443,1716027053434,-500.0,0.00036164,9]
[327372444,1716027053444,-541.29456973,0.00036164,9]
[327372445,1716027053454,-629.44,0.00036164,9]
[327372446,1716027053463,-500.0,0.00036164,9]
[327372447,1716027053473,-510.40244655,0.00036164,9]
[327372448,1716027053484,-500.0,0.00036164,9]
[327372449,1716027053493,-500.0,0.00036164,9]
[327372450,1716027053503,-251.11341,0.00036164,7]
[327372451,1716027053513,-500.0,0.00036164,9]
[327372452,1716027053524,-934.8,0.00036164,9]
[327372453,1716027053534,-251.11341,0.00036164,7]
[327372454,1716027053706,-500.0,0.00036164,9]
[327372455,1716027053716,-500.0,0.00036164,9]
[327372456,1716027053726,-251.11341,0.00036164,7]
[327372457,1716027053735,-251.11341,0.00036164,7]
[327372458,1716027053744,-500.0,0.00036164,9]
[327372459,1716027053754,-2042.79,0.00036164,9]
[327372460,1716027053764,-690.88,0.00036164,9]
[327372461,1716027053772,-500.0,0.00036164,9]
[327372462,1716027053782,-514.89,0.00036164,9]
[327372463,1716027053791,-500.0,0.00036164,9]
[327372464,1716027053801,-500.0,0.00036164,9]
[327372465,1716027053810,-1319.08,0.00036164,9]
[327372466,1716027053819,-500.0,0.00036164,9]
[327372467,1716027053829,-423.524968,0.00036164,7]
[327372468,1716027053838,-500.0,0.00036164,9]
[327372469,1716027053847,-503.15329744,0.00036164,9]
[327372470,1716027053856,-500.0,0.00036164,9]
[327372471,1716027053867,-1381.199649,0.00036164,7]
[327372472,1716027053876,-500.0,0.00036164,9]
[327372473,1716027053885,-1381.199649,0.00036164,7]
[327372474,1716027053895,-423.524968,0.00036164,7]
[327372475,1716027053904,-500.0,0.00036164,9]
[327372476,1716027053913,-500.0,0.00036164,9]
[327372477,1716027053922,-151.0,0.00036164,7]
[327372478,1716027053932,-546.09,0.00036164,9]
[327372479,1716027053941,-151.0,0.00036164,7]
[327372480,1716027053950,-1381.199649,0.00036164,7]
[327372481,1716027053959,-1381.199649,0.00036164,7]
[327372482,1716027053969,-505.6665938,0.00036164,9]
[327372483,1716027053978,-3803.72,0.00036164,9]
[327372484,1716027053988,-500.0,0.00036164,9]
[327372485,1716027053997,-593.45,0.00036164,9]
[327372486,1716027054007,-500.0,0.00036164,9]
[327372487,1716027054016,-797.77,0.00036164,9]
[327372488,1716027054026,-2284.56,0.00036164,9]
[327372489,1716027054035,-492.04363392,0.00036164,9]
[327372490,1716027054045,-500.0,0.00036164,9]
[327372491,1716027054054,-538.34,0.00036164,9]
[327372492,1716027054064,-500.0,0.00036164,9]
[327372493,1716027054074,-500.0,0.00036164,9]
[327372494,1716027054085,-343.398027,0.00036164,7]
[327372495,1716027054096,-343.398027,0.00036164,7]
[327372496,1716027054105,-827.64,0.00036164,9]
[327372497,1716027054115,-500.0,0.00036164,9]
[327372498,1716027054125,-343.398027,0.00036164,7]
[327372499,1716027054135,-500.0,0.00036164,9]
[327372500,1716027054144,-832.88,0.00036164,9]
[327372501,1716027054153,-343.398027,0.00036164,7]
[327372502,1716027054164,-2188.52,0.00036164,9]
[327372503,1716027054173,-522.26171067,0.00036164,9]
[327372504,1716027054184,-151.0,0.00036164,7]
[327372505,1716027054193,-796.82,0.00036164,9]
[327372506,1716027054202,-500.0,0.00036164,9]
[327372507,1716027054212,-151.0,0.00036164,7]
[327372508,1716027054221,-815.72,0.00036164,9]
[327372509,1716027054231,-328.52393,0.00036164,7]
[327372510,1716027054241,-328.52393,0.00036164,7]
[327372511,1716027054250,-207.18526158,0.00036164,9]
[327372512,1716027054261,-500.0,0.00036164,9]
[327372513,1716027054271,-500.0,0.00036164,9]
[327372514,1716027054281,-500.0,0.00036164,9]
[327372515,1716027054290,-500.0,0.00036164,9]
[327372516,1716027054299,-500.0,0.00036164,9]
[327372517,1716027054308,-151.0,0.00036164,7]
[327372518,1716027054317,-151.0,0.00036164,7]
[327372519,1716027054327,-500.0,0.00036164,9]
[327372520,1716027054336,-752.83,0.00036164,9]
[327372521,1716027054345,-500.0,0.00036164,9]
[327372522,1716027054355,-932.675204,0.00036164,7]
[327372523,1716027054364,-328.52393,0.00036164,7]
[327372524,1716027054373,-864.81,0.00036164,9]
[327372525,1716027054382,-932.675204,0.00036164,7]
[327372526,1716027054391,-328.52393,0.00036164,7]
[327372527,1716027054401,-1041.01,0.00036164,9]
[327372528,1716027054410,-500.0,0.00036164,9]
[327372529,1716027054420,-500.0,0.00036164,9]
[327372530,1716027054429,-500.0,0.00036164,9]
[327372531,1716027054439,-1424.33,0.00036164,9]
[327372532,1716027054448,-151.0,0.00036164,7]
[327372533,1716027054458,-151.0,0.00036164,7]
[327372534,1716027054468,-500.0,0.00036164,9]
[327372535,1716027054477,-196.46888,0.00036164,7]
[327372536,1716027054487,-932.675204,0.00036164,7]
[327372537,1716027054496,-932.675204,0.00036164,7]
[327372538,1716027054506,-500.0,0.00036164,9]
[327372539,1716027054515,-500.0,0.00036164,9]
[327372540,1716027054525,-500.0,0.00036164,9]
[327372541,1716027054534,-500.0,0.00036164,9]
[327372542,1716027054544,-151.0,0.00036164,7]
[327372543,1716027054554,-151.0,0.00036164,7]
[327372544,1716027054563,-151.0,0.00036164,7]
[327372545,1716027054572,-1362.23,0.00036164,9]
[327372546,1716027054582,-151.0,0.00036164,7]
[327372547,1716027054591,-500.0,0.00036164,9]
[327372548,1716027054601,-196.46888,0.00036164,7]
[327372549,1716027054611,-500.0,0.00036164,9]
[327372550,1716027054620,-500.0,0.00036164,9]
[327372551,1716027054630,-939.57,0.00036164,9]
[327372552,1716027054639,-1087.06,0.00036164,9]
[327372553,1716027054648,-500.0,0.00036164,9]
[327372554,1716027054658,-500.0,0.00036164,9]
[327372555,1716027054667,-500.0,0.00036164,9]
[327372556,1716027054676,-151.0,0.00036164,7]
[327372557,1716027054687,-500.0,0.00036164,9]
[327372558,1716027054697,-151.0,0.00036164,7]
[327372559,1716027054707,-500.0,0.00036164,9]
[327372560,1716027054716,-696.54,0.00036164,9]
[327372561,1716027054726,-1289.9,0.00036164,9]
[327372562,1716027054736,-500.0,0.00036164,9]
[327372563,1716027054745,-3041.74,0.00036164,9]
[327372564,1716027054755,-559.66,0.00036164,9]
[327372565,1716027054765,-825.26,0.00036164,9]
[327372566,1716027054775,-151.0,0.00036164,7]
[327372567,1716027054784,-151.0,0.00036164,7]
[327372568,1716027054794,-500.0,0.00036164,9]
[327372569,1716027054803,-500.0,0.00036164,9]
[327372570,1716027054812,-500.0,0.00036164,9]
[327372571,1716027054821,-759.62,0.00036164,9]
[327372572,1716027054830,-629.52,0.00036164,9]
[327372573,1716027054840,-500.0,0.00036164,9]
[327372574,1716027054849,-275.024972,0.00036164,7]
[327372575,1716027054859,-275.024972,0.00036164,7]
[327372576,1716027054868,-534.49,0.00036164,9]
[327372577,1716027054878,-570.27,0.00036164,9]
[327372578,1716027054887,-233.89938781,0.00036164,9]
[327372579,1716027054897,-591.3943545,0.00036164,9]
[327372580,1716027054906,-500.0,0.00036164,9]
[327372581,1716027054916,-275.024972,0.00036164,7]
[327372582,1716027054925,-151.0,0.00036164,7]
[327372583,1716027054935,-275.024972,0.00036164,7]
[327372584,1716027054945,-152.958613,0.00036164,7]
[327372585,1716027054955,-151.0,0.00036164,7]
[327372586,1716027054964,-500.0,0.00036164,9]
[327372587,1716027054973,-151.0,0.00036164,7]
[327372588,1716027054983,-500.0,0.00036164,9]
[327372589,1716027054992,-697.12,0.00036164,9]
[327372590,1716027055001,-912.9,0.00036164,9]
[327372591,1716027055011,-549.38,0.00036164,9]
[327372592,1716027055020,-500.0,0.00036164,9]
[327372593,1716027055029,-151.0,0.00036164,2]
[327372594,1716027055038,-159.337813,0.00036164,2]
[327372595,1716027055047,-506.5201288,0.00036164,9]
[327372596,1716027055056,-500.0,0.00036164,9]
[327372597,1716027055066,-500.0,0.00036164,9]
[327372598,1716027055075,-500.0,0.00036164,9]
[327372599,1716027055088,-151.0,0.00036164,7]
[327372600,1716027055097,-4223.91,0.00036164,9]
[327372601,1716027055107,-151.0,0.00036164,7]
[327372602,1716027055116,-1065.59,0.00036164,9]
[327372603,1716027055127,-631.5,0.00036164,9]
[327372604,1716027055136,-545.68,0.00036164,9]
[327372605,1716027055145,-151.0,0.00036164,7]
[327372606,1716027055155,-182.146409,0.00036164,7]
[327372607,1716027055165,-500.0,0.00036164,9]
[327372608,1716027055176,-151.0,0.00036164,7]
[327372609,1716027055187,-151.0,0.00036164,7]
[327372610,1716027055196,-270.180676,0.00036164,7]
[327372611,1716027055205,-270.180676,0.00036164,7]
[327372612,1716027055215,-500.0,0.00036164,9]
[327372613,1716027055224,-500.0,0.00036164,9]
[327372614,1716027055233,-500.0,0.00036164,9]
[327372615,1716027055242,-270.180676,0.00036164,7]
[327372616,1716027055251,-270.180676,0.00036164,7]
[327372617,1716027055261,-500.0,0.00036164,9]
[327372618,1716027055271,-610.38,0.00036164,9]
[327372619,1716027055280,-3746.55,0.00036164,9]
[327372620,1716027055290,-838.53,0.00036164,9]
[327372621,1716027055299,-500.0,0.00036164,9]
[327372622,1716027055308,-500.0,0.00036164,9]
[327372623,1716027055317,-226.51506749,0.00036164,9]
[327372624,1716027055326,-500.0,0.00036164,9]
[327372625,1716027055336,-584.1,0.00036164,9]
[327372626,1716027055345,-500.0,0.00036164,9]
[327372627,1716027055354,-151.0,0.00036164,7]
[327372628,1716027055363,-151.0,0.00036164,7]
[327372629,1716027055373,-732.68,0.00036164,9]
[327372630,1716027055382,-4471.01,0.00036164,9]
[327372631,1716027055391,-1692.03,0.00036164,9]
[327372632,1716027055401,-500.0,0.00036164,9]
[327372633,1716027055411,-1112.92,0.00036164,9]
[327372634,1716027055420,-151.0,0.00036164,7]
[327372635,1716027055430,-500.0,0.00036164,9]
[327372636,1716027055440,-151.0,0.00036164,7]
[327372637,1716027055449,-500.0,0.00036164,9]
[327372638,1716027055458,-500.0,0.00036164,9]
[327372639,1716027055468,-500.0,0.00036164,9]
[327372640,1716027055477,-500.0,0.00036164,9]
[327372641,1716027055486,-500.0,0.00036164,9]
[327372642,1716027055496,-542.74,0.00036164,9]
[327372643,1716027055505,-500.0,0.00036164,9]
[327372644,1716027055515,-612.12,0.00036164,9]
[327372645,1716027055525,-500.0,0.00036164,2]
[327372646,1716027055535,-154.86,0.00036172,2]
[327372647,1716027055544,-2831.58512469,0.00036287,9]
[327372648,1716027055554,-303.42183698,0.00036338,2]
[327372649,1716027055564,-513.77927994,0.00036428,2]
[327372650,1716027055573,-313.61870849,0.00036436,7]
[327372651,1716027055583,-1152.06,0.00036437,9]
[327372652,1716027055592,-500.0,0.00036438,9]
[327372653,1716027055602,-500.0,0.00036438,9]
[327372654,1716027055611,-3858.95,0.00036438,9]
[327372655,1716027055621,-5237.91,0.00036438,9]
[327372656,1716027055632,-500.0,0.00036438,9]
[327372657,1716027055642,-500.0,0.00036438,9]
[327372658,1716027055651,-500.0,0.00036438,9]
[327372659,1716027055661,-500.0,0.00036438,9]
[327372660,1716027055670,-500.0,0.00036438,9]
[327372661,1716027055680,-500.0,0.00036438,9]
[327372662,1716027055689,-541.0,0.00036438,9]
[327372663,1716027055699,-525.08,0.00036438,9]
[327372664,1716027055708,-701.67,0.00036438,9]
[327372665,1716027055717,-500.0,0.00036438,9]
[327372666,1716027055726,-200.04458405,0.00036438,9]
[327372667,1716027055735,-500.0,0.00036438,9]
[327372668,1716027055745,-3615.35,0.00036438,9]
[327372669,1716027055754,-500.0,0.00036438,9]
[327372670,1716027055764,-500.0,0.00036438,9]
[327372671,1716027055774,-500.0,0.00036438,9]
[327372672,1716027055784,-500.0,0.00036438,9]
[327372673,1716027055794,-762.31,0.00036438,9]
[327372674,1716027055803,-543.4,0.00036438,7]
[327372675,1716027055812,-500.0,0.00036438,9]
[327372676,1716027055822,-500.0,0.00036438,9]
[327372677,1716027055831,-500.0,0.00036438,9]
[327372678,1716027055840,-500.0,0.00036438,9]
[327372679,1716027055849,-500.0,0.00036438,9]
[327372680,1716027055859,-500.0,0.00036438,9]
[327372681,1716027055868,-724.11,0.00036438,9]
[327372682,1716027055876,-500.0,0.00036438,9]
[327372683,1716027055886,-808.58,0.00036438,9]
[327372684,1716027055895,-500.0,0.00036438,9]
[327372685,1716027055904,-500.0,0.00036438,9]
[327372686,1716027055914,-500.0,0.00036438,9]
[327372687,1716027055923,-500.0,0.00036438,9]
[327372688,1716027055932,-500.0,0.00036438,9]
[327372689,1716027055942,-500.0,0.00036438,9]
[327372690,1716027055951,-500.0,0.00036438,9]
[327372691,1716027055960,-500.0,0.00036438,9]
[327372692,1716027055970,-500.0,0.00036438,9]
[327372693,1716027055979,-345.94315522,0.00036438,9]
[327372694,1716027055989,-631.73,0.00036438,9]
[327372695,1716027055998,-500.0,0.00036438,9]
[327372696,1716027056007,-579.25,0.00036438,9]
[327372697,1716027056017,-500.0,0.00036438,9]
[327372698,1716027056026,-500.0,0.00036438,9]
[327372699,1716027056035,-351.60405544,0.00036438,9]
[327372700,1716027056044,-500.0,0.00036438,9]
[327372701,1716027056054,-565.14,0.00036438,9]
[327372702,1716027056063,-567.28082243,0.00036438,9]
[327372703,1716027056073,-459.12729154,0.00036438,9]
[327372704,1716027056082,-500.0,0.00036438,9]
[327372705,1716027056095,-715.53,0.00036438,9]
[327372706,1716027056104,-500.0,0.00036438,9]
[327372707,1716027056114,-500.0,0.00036438,9]
[327372708,1716027056123,-500.0,0.00036438,9]
[327372709,1716027056134,-500.0,0.00036438,9]
[327372710,1716027056143,-522.99,0.00036438,9]
[327372711,1716027056152,-500.0,0.00036438,9]
[327372712,1716027056162,-500.0,0.00036438,9]
[327372713,1716027056172,-500.0,0.00036438,9]
[327372714,1716027056181,-555.68716009,0.00036438,9]
[327372715,1716027056191,-500.0,0.00036438,9]
[327372716,1716027056200,-500.0,0.00036438,9]
[327372717,1716027056209,-500.0,0.00036438,9]
[327372718,1716027056219,-500.0,0.00036438,9]
[327372719,1716027056228,-500.0,0.00036438,9]
[327372720,1716027056237,-500.0,0.00036438,9]
[327372721,1716027056246,-500.0,0.00036438,9]
[327372722,1716027056255,-639.90219237,0.00036438,9]
[327372723,1716027056264,-739.25,0.00036438,9]
[327372724,1716027056273,-500.0,0.00036438,9]
[327372725,1716027056283,-500.0,0.00036438,9]
[327372726,1716027056291,-500.0,0.00036438,9]
[327372727,1716027056301,-500.0,0.00036438,9]
[327372728,1716027056310,-804.77,0.00036438,9]
[327372729,1716027056318,-500.0,0.00036438,9]
[327372730,1716027056328,-150.0,0.00036438,9]
[327372731,1716027056337,-987.86,0.00036438,9]
[327372732,1716027056347,-500.0,0.00036438,9]
[327372733,1716027056357,-728.7,0.00036438,9]
[327372734,1716027056368,-500.0,0.00036438,9]
[327372735,1716027056379,-2308.42,0.00036438,9]
[327372736,1716027056388,-500.0,0.00036438,9]
[327372737,1716027056397,-581.62,0.00036438,9]
[327372738,1716027056406,-500.0,0.00036438,9]
[327372739,1716027056415,-217.39368165,0.00036438,9]